[Event "XII Paracin Festival 2019"]
[Site "Paracin"]
[Date "2019.07.05"]
[Round "1.9"]
[White "Jovanovic, Sasa T"]
[Black "Asadli, Vugar"]
[Result "0-1"]
[ECO "A40"]
[WhiteElo "2205"]
[BlackElo "2502"]
[Annotator "ChessBase"]
[PlyCount "68"]
[EventDate "2019.07.05"]
[EventType "swiss"]
[EventCountry "SRB"]
[SourceTitle "playchess.com"]
[Source "ChessBase"]
[SourceQuality "1"]
[TimeControl "5400+30"]

1. d4 {[%emt 0:00:00]} g6 {[%emt 0:02:51]} 2. Nf3 {[%emt 0:00:23]} Bg7 {[%emt 0:00:04]} 3. c4 {[%emt 0:00:39]} d6 {[%emt 0:02:06]} 4. Nc3 {[%emt 0:00:33]} Nc6 {[%emt 0:05:29]} 5. d5 {[%emt 0:01:10]} Ne5 {[%emt 0:00:59]} 6. Nxe5 {[%emt 0:03:06]} Bxe5 {[%emt 0:00:04]} 7. g3 {[%emt 0:01:12]} h5 {[%emt 0:04:02]} 8. h4 {[%emt 0:05:05]} c5 {[%emt 0:04:23]} 9. dxc6 {[%emt 0:00:18]} bxc6 {[%emt 0:00:22]} 10. Bg2 {[%emt 0:00:06]} Bd7 {[%emt 0:00:18]} 11. O-O {[%emt 0:02:19]} Nf6 {[%emt 0:04:09]} 12. Qd3 {[%emt 0:03:40]} Ng4 {[%emt 0:03:02]} 13. Bd2 {[%emt 0:01:53]} Bg7 {[%emt 0:03:04]} 14. Qc2 {[%emt 0:03:36]} Rc8 {[%emt 0:02:41]} 15. Rad1 {[%emt 0:01:45]} O-O {[%emt 0:05:11]} 16. Ne4 {[%emt 0:01:21]} Bf5 {[%emt 0:13:44]} 17. Bc3 {[%emt 0:03:07]} Bh6 {[%emt 0:04:43]} 18. Qa4 {[%emt 0:01:50]} Qc7 {[%emt 0:03:54]} 19. Ba5 {[%emt 0:10:24]} Qb7 {[%emt 0:00:59]} 20. Bc3 {[%emt 0:00:12]} Rfd8 {[%emt 0:01:37]} 21. Ng5 {[%emt 0:04:47]} Bg7 {[%emt 0:05:49]} 22. Bxg7 {[%emt 0:04:55]} Kxg7 {[%emt 0:00:02]} 23. Qa3 {[%emt 0:01:36]} Qb6 {[%emt 0:02:29]} 24. Qc3+ {[%emt 0:00:40]} f6 {[%emt 0:00:40]} 25. b3 {[%emt 0:05:12]} a5 {[%emt 0:03:14]} 26. Be4 {[%emt 0:01:54]} Bd7 {[%emt 0:02:17]} 27. a3 {[%emt 0:03:52]} d5 {[%emt 0:01:11]} 28. Bg2 {[%emt 0:03:32]} e5 {[%emt 0:00:45]} 29. c5 {[%emt 0:06:47]} Qb5 {[%emt 0:01:11]} 30. f3 {[%emt 0:01:28]} d4 {[%emt 0:00:16]} 31. Qc1 {[%emt 0:00:56]} Ne3 {[%emt 0:01:08]} 32. Ne4 {[%emt 0:00:09]} Nxf1 {[%emt 0:00:23]} 33. Bxf1 {[%emt 0:06:35]} Qxb3 {[%emt 0:00:18]} 34. Nxf6 {[%emt 0:00:48]} Kxf6 {[%emt 0:00:35]} 0-1

[Event "XII Paracin Festival 2019"]
[Site "Paracin"]
[Date "2019.07.05"]
[Round "1.10"]
[White "Lorparizangeneh, Shahin"]
[Black "Uzumcu, Ahmet Utku"]
[Result "1/2-1/2"]
[ECO "A16"]
[WhiteElo "2494"]
[BlackElo "2201"]
[Annotator "ChessBase"]
[PlyCount "160"]
[EventDate "2019.07.05"]
[EventType "swiss"]
[EventCountry "SRB"]
[SourceTitle "playchess.com"]
[Source "ChessBase"]
[SourceQuality "1"]
[TimeControl "5400+30"]

1. c4 {[%emt 0:01:07]} Nf6 {[%emt 0:00:02]} 2. Nc3 {[%emt 0:00:05]} d5 {[%emt 0:00:35]} 3. cxd5 {[%emt 0:00:07]} Nxd5 {[%emt 0:00:05]} 4. g3 {[%emt 0:00:20]} g6 {[%emt 0:01:14]} 5. Bg2 {[%emt 0:00:07]} Nb6 {[%emt 0:02:22]} 6. d3 {[%emt 0:00:24]} Bg7 {[%emt 0:00:37]} 7. Be3 {[%emt 0:00:25]} Nc6 {[%emt 0:02:16]} 8. Bxc6+ {[%emt 0:02:30]} bxc6 {[%emt 0:00:05]} 9. Qd2 {[%emt 0:00:04]} h6 {[%emt 0:02:50]} 10. Qc1 {[%emt 0:16:20]} Nd5 {[%emt 0:04:18]} 11. Bd2 {[%emt 0:00:31]} Nxc3 {[%emt 0:03:56]} 12. Bxc3 {[%emt 0:02:03]} Bxc3+ {[%emt 0:00:20]} 13. Qxc3 {[%emt 0:02:10]} O-O {[%emt 0:00:08]} 14. Nf3 {[%emt 0:00:56]} Bh3 {[%emt 0:09:17]} 15. Ne5 {[%emt 0:01:07]} Qd6 {[%emt 0:02:03]} 16. f3 {[%emt 0:05:33]} Bd7 {[%emt 0:03:26]} 17. Rc1 {[%emt 0:02:10]} Rfb8 18. Nc4 {[%emt 0:25:48]} Qc5 {[%emt 0:04:51]} 19. b3 {[%emt 0:04:09]} a5 {[%emt 0:02:31]} 20. Ne5 {[%emt 0:09:05]} Qd6 {[%emt 0:01:14]} 21. Qc5 {[%emt 0:03:21]} Be8 {[%emt 0:02:52]} 22. Qe3 {[%emt 0:00:39]} Qe6 {[%emt 0:02:07]} 23. Kf2 {[%emt 0:02:23]} a4 {[%emt 0:04:06]} 24. Nxc6 {[%emt 0:01:42]} Qxe3+ {[%emt 0:01:08]} 25. Kxe3 {[%emt 0:00:02]} Bxc6 {[%emt 0:01:05]} 26. Rxc6 {[%emt 0:00:02]} axb3 {[%emt 0:01:14]} 27. axb3 {[%emt 0:00:01]} Rxb3 {[%emt 0:00:45]} 28. Rxc7 {[%emt 0:00:02]} e6 {[%emt 0:00:16]} 29. Rc2 {[%emt 0:03:35]} Kg7 {[%emt 0:00:40]} 30. f4 {[%emt 0:01:57]} Ra4 {[%emt 0:03:29]} 31. Kf3 {[%emt 0:01:33]} h5 {[%emt 0:02:00]} 32. Rhc1 {[%emt 0:00:34]} Rb7 {[%emt 0:01:36]} 33. h3 {[%emt 0:00:28]} Rd7 {[%emt 0:01:50]} 34. g4 {[%emt 0:00:47]} hxg4+ {[%emt 0:03:51]} 35. hxg4 {[%emt 0:00:02]} g5 {[%emt 0:04:30]} 36. fxg5 {[%emt 0:02:19]} Ra5 {[%emt 0:00:47]} 37. Rc5 {[%emt 0:04:49]} Rd5 {[%emt 0:00:04]} 38. Rxa5 {[%emt 0:06:39]} Rxa5 {[%emt 0:00:02]} 39. Kf4 {[%emt 0:00:07]} Kg6 {[%emt 0:02:33]} 40. Rc8 {[%emt 0:00:21]} Ra2 {[%emt 0:03:50]} 41. e4 {[%emt 0:00:33]} Rf2+ {[%emt 0:01:06]} 42. Ke5 {[%emt 0:00:01]} Rg2 {[%emt 0:00:07]} 43. Rg8+ {[%emt 0:03:24]} Kh7 {[%emt 0:00:06]} 44. Rd8 {[%emt 0:00:23]} Kg7 {[%emt 0:03:17]} 45. Kd6 {[%emt 0:00:26]} Rxg4 {[%emt 0:00:51]} 46. Ke7 {[%emt 0:00:07]} e5 {[%emt 0:04:30]} 47. Rd6 {[%emt 0:00:49]} Rxg5 {[%emt 0:01:32]} 48. Rf6 {[%emt 0:00:07]} Rg3 {[%emt 0:00:10]} 49. Rxf7+ {[%emt 0:00:06]} Kg6 {[%emt 0:00:52]} 50. Rf6+ {[%emt 0:00:13]} Kg5 {[%emt 0:01:02]} 51. Rf5+ {[%emt 0:01:16]} Kg6 {[%emt 0:00:02]} 52. Rxe5 {[%emt 0:00:40]} Rxd3 {[%emt 0:00:02]} 53. Rd5 {[%emt 0:00:07]} Ra3 {[%emt 0:00:47]} 54. e5 {[%emt 0:00:37]} Ra7+ {[%emt 0:01:58]} 55. Rd7 {[%emt 0:00:27]} Ra8 {[%emt 0:00:39]} 56. e6 {[%emt 0:01:18]} Kg7 {[%emt 0:02:31]} 57. Rb7 {[%emt 0:00:29]} Kg6 {[%emt 0:01:13]} 58. Rd7 {[%emt 0:00:39]} Kg7 {[%emt 0:00:12]} 59. Rc7 {[%emt 0:00:03]} Kg6 {[%emt 0:00:36]} 60. Rc1 {[%emt 0:00:28]} Ra7+ {[%emt 0:01:37]} 61. Kd6 {[%emt 0:00:05]} Ra6+ {[%emt 0:01:26]} 62. Kd7 {[%emt 0:01:04]} Ra7+ {[%emt 0:00:49]} 63. Rc7 {[%emt 0:00:53]} Ra8 {[%emt 0:00:40]} 64. Kd6 {[%emt 0:00:40]} Ra6+ {[%emt 0:01:00]} 65. Ke7 {[%emt 0:00:32]} Ra8 {[%emt 0:00:14]} 66. Kd7 {[%emt 0:00:36]} Kf6 {[%emt 0:01:03]} 67. Rb7 {[%emt 0:00:12]} Kg7 {[%emt 0:01:45]} 68. Ke7 {[%emt 0:00:41]} Kg6 {[%emt 0:00:36]} 69. Kd6 {[%emt 0:00:32]} Ra6+ {[%emt 0:00:55]} 70. Kd7 {[%emt 0:00:09]} Ra8 {[%emt 0:00:14]} 71. Ke7 {[%emt 0:00:47]} Kg7 {[%emt 0:01:04]} 72. Rd7 {[%emt 0:00:01]} Kg6 {[%emt 0:00:39]} 73. Rd8 {[%emt 0:01:06]} Ra7+ {[%emt 0:00:29]} 74. Kd6 {[%emt 0:00:05]} Ra6+ {[%emt 0:00:24]} 75. Ke5 {[%emt 0:00:01]} Ra5+ {[%emt 0:00:18]} 76. Rd5 {[%emt 0:00:02]} Ra8 {[%emt 0:01:20]} 77. Rd1 {[%emt 0:00:23]} Ra5+ {[%emt 0:00:15]} 78. Kd6 {[%emt 0:01:24]} Ra6+ {[%emt 0:00:08]} 79. Ke7 {[%emt 0:00:06]} Ra7+ {[%emt 0:00:05]} 80. Ke8 {[%emt 0:00:23]} Kf6 {[%emt 0:00:35]} 1/2-1/2

[Event "XII Paracin Festival 2019"]
[Site "Paracin"]
[Date "2019.07.05"]
[Round "1.11"]
[White "Kantorik, Marian"]
[Black "Milanovic, Danilo"]
[Result "1/2-1/2"]
[ECO "A58"]
[WhiteElo "2196"]
[BlackElo "2492"]
[Annotator "ChessBase"]
[PlyCount "75"]
[EventDate "2019.07.05"]
[EventType "swiss"]
[EventCountry "SRB"]
[SourceTitle "playchess.com"]
[Source "ChessBase"]
[SourceQuality "1"]
[TimeControl "5400+30"]

1. d4 {[%emt 0:00:00]} Nf6 {[%emt 0:00:00]} 2. c4 {[%emt 0:00:00]} c5 {[%emt 0:00:00]} 3. d5 {[%emt 0:00:33]} b5 {[%emt 0:00:00]} 4. cxb5 {[%emt 0:00:17]} a6 {[%emt 0:00:00]} 5. bxa6 {[%emt 0:00:23]} g6 {[%emt 0:00:00]} 6. Nc3 {[%emt 0:00:18]} Bg7 {[%emt 0:00:15]} 7. g3 {[%emt 0:01:00]} O-O {[%emt 0:00:24]} 8. Bg2 {[%emt 0:00:06]} d6 {[%emt 0:00:32]} 9. Nh3 {[%emt 0:01:37]} Nbd7 {[%emt 0:08:05]} 10. O-O {[%emt 0:01:29]} Bxa6 {[%emt 0:02:01]} 11. Qc2 {[%emt 0:00:28]} Qa5 {[%emt 0:02:29]} 12. Rb1 {[%emt 0:05:18]} Rfb8 {[%emt 0:15:02]} 13. Bd2 {[%emt 0:04:52]} c4 {[%emt 0:18:35]} 14. Rfc1 {[%emt 0:02:59]} Ne8 {[%emt 0:11:02]} 15. b4 {[%emt 0:13:00]} Qa3 {[%emt 0:21:38]} 16. Qb2 {[%emt 0:19:10]} Qxb2 {[%emt 0:07:55]} 17. Rxb2 {[%emt 0:00:10]} Bb5 {[%emt 0:00:06]} 18. Rbc2 {[%emt 0:04:38]} Bxc3 {[%emt 0:00:51]} 19. Bxc3 {[%emt 0:00:13]} Ra3 {[%emt 0:00:05]} 20. Ng5 {[%emt 0:06:31]} Rba8 {[%emt 0:00:38]} 21. Nf3 {[%emt 0:00:39]} Rxa2 {[%emt 0:01:18]} 22. Nd4 {[%emt 0:00:59]} Rxc2 {[%emt 0:01:46]} 23. Rxc2 {[%emt 0:00:08]} Nc7 {[%emt 0:00:05]} 24. e4 {[%emt 0:03:42]} Ra3 {[%emt 0:02:25]} 25. Bf1 {[%emt 0:01:33]} Ba4 {[%emt 0:05:29]} 26. Rc1 {[%emt 0:00:13]} Ne5 {[%emt 0:00:04]} 27. b5 {[%emt 0:07:55]} Bxb5 {[%emt 0:01:59]} 28. Nxb5 {[%emt 0:01:34]} Nxb5 {[%emt 0:00:04]} 29. Bxe5 {[%emt 0:00:14]} dxe5 {[%emt 0:00:04]} 30. Rxc4 {[%emt 0:00:20]} Nd6 {[%emt 0:00:37]} 31. Rb4 {[%emt 0:02:14]} f5 {[%emt 0:01:18]} 32. f4 {[%emt 0:04:51]} Nxe4 {[%emt 0:00:06]} 33. fxe5 {[%emt 0:00:11]} Ra1 {[%emt 0:00:04]} 34. Kg2 {[%emt 0:01:39]} Ra2+ {[%emt 0:00:06]} 35. Kg1 {[%emt 0:00:37]} Ra1 {[%emt 0:01:35]} 36. Kg2 {[%emt 0:00:11]} Ra2+ {[%emt 0:00:41]} 37. Kg1 {[%emt 0:00:09]} Ra1 {[%emt 0:00:38]} 38. e6 1/2-1/2

[Event "XII Paracin Festival 2019"]
[Site "Paracin"]
[Date "2019.07.05"]
[Round "1.12"]
[White "Stojanovic, Mihajlo"]
[Black "Mihov, Filip"]
[Result "1-0"]
[ECO "D02"]
[WhiteElo "2483"]
[BlackElo "2188"]
[Annotator "ChessBase"]
[PlyCount "99"]
[EventDate "2019.07.05"]
[EventType "swiss"]
[EventCountry "SRB"]
[SourceTitle "playchess.com"]
[Source "ChessBase"]
[SourceQuality "1"]
[TimeControl "5400+30"]

1. Nf3 {[%emt 0:00:00]} d5 {[%emt 0:00:00]} 2. d4 {[%emt 0:00:00]} c5 {[%emt 0:00:11]} 3. c4 {[%emt 0:00:00]} dxc4 {[%emt 0:00:26]} 4. e4 {[%emt 0:00:24]} cxd4 {[%emt 0:02:00]} 5. Qxd4 {[%emt 0:00:07]} Qxd4 {[%emt 0:02:21]} 6. Nxd4 {[%emt 0:00:05]} a6 {[%emt 0:05:07]} 7. Bxc4 {[%emt 0:00:23]} e6 {[%emt 0:00:17]} 8. Be3 {[%emt 0:02:26]} b5 {[%emt 0:01:31]} 9. Be2 {[%emt 0:00:14]} Bb7 {[%emt 0:00:32]} 10. f3 {[%emt 0:00:04]} Nc6 {[%emt 0:04:38]} 11. Nxc6 {[%emt 0:00:49]} Bxc6 {[%emt 0:01:35]} 12. Nd2 {[%emt 0:00:14]} Nf6 {[%emt 0:04:45]} 13. Rc1 {[%emt 0:01:49]} Bd7 {[%emt 0:06:50]} 14. Kf2 {[%emt 0:00:22]} Bd6 {[%emt 0:00:51]} 15. Nb3 {[%emt 0:01:09]} Ke7 {[%emt 0:08:13]} 16. Nc5 {[%emt 0:05:41]} Rhc8 {[%emt 0:05:57]} 17. Nb7 {[%emt 0:01:41]} Rxc1 {[%emt 0:05:52]} 18. Rxc1 {[%emt 0:00:06]} Rc8 {[%emt 0:02:42]} 19. Nxd6 {[%emt 0:09:45]} Rxc1 {[%emt 0:02:06]} 20. Bxc1 {[%emt 0:00:21]} Kxd6 {[%emt 0:00:05]} 21. Bd2 {[%emt 0:00:09]} e5 {[%emt 0:03:28]} 22. Bb4+ {[%emt 0:00:28]} Kc6 {[%emt 0:05:12]} 23. Bf8 {[%emt 0:07:00]} Ne8 {[%emt 0:00:42]} 24. Ke3 {[%emt 0:00:26]} f6 {[%emt 0:03:59]} 25. h4 {[%emt 0:03:48]} g6 {[%emt 0:05:33]} 26. f4 {[%emt 0:01:52]} Be6 {[%emt 0:14:40]} 27. b3 {[%emt 0:00:30]} Kd7 {[%emt 0:02:38]} 28. g4 {[%emt 0:05:14]} Nd6 {[%emt 0:05:24]} 29. Bg7 Ne8 {[%emt 0:01:10]} 30. Bf8 {[%emt 0:10:38]} Nd6 {[%emt 0:05:14]} 31. f5 {[%emt 0:05:02]} Bf7 {[%emt 0:00:30]} 32. Bd3 {[%emt 0:00:11]} Ne8 {[%emt 0:00:44]} 33. Kd2 {[%emt 0:06:24]} Kc6 {[%emt 0:00:05]} 34. Kc3 {[%emt 0:02:14]} a5 {[%emt 0:00:08]} 35. a3 {[%emt 0:01:26]} h5 {[%emt 0:01:05]} 36. gxh5 {[%emt 0:01:51]} gxh5 {[%emt 0:00:21]} 37. Be2 {[%emt 0:01:25]} Kb6 {[%emt 0:01:02]} 38. Be7 {[%emt 0:03:57]} Kc6 {[%emt 0:00:26]} 39. Bd8 {[%emt 0:00:25]} a4 {[%emt 0:00:38]} 40. bxa4 {[%emt 0:04:04]} bxa4 {[%emt 0:00:01]} 41. Be7 {[%emt 0:07:35]} Kd7 {[%emt 0:00:22]} 42. Bf8 {[%emt 0:00:09]} Nd6 {[%emt 0:00:54]} 43. Bxd6 {[%emt 0:00:48]} Kxd6 {[%emt 0:00:01]} 44. Kb4 {[%emt 0:00:16]} Be8 {[%emt 0:01:09]} 45. Bb5 {[%emt 0:00:56]} Bc6 {[%emt 0:00:15]} 46. Bxc6 {[%emt 0:02:55]} Kxc6 {[%emt 0:00:01]} 47. Kc4 {[%emt 0:00:17]} Kc7 {[%emt 0:01:15]} 48. Kc5 {[%emt 0:00:12]} Kd7 {[%emt 0:00:20]} 49. Kd5 {[%emt 0:00:29]} Ke7 {[%emt 0:00:28]} 50. Kc6 {[%emt 0:00:08]} 1-0

[Event "XII Paracin Festival 2019"]
[Site "Paracin"]
[Date "2019.07.05"]
[Round "1.13"]
[White "Sahil, Tickoo"]
[Black "Kosic, Dragan"]
[Result "1/2-1/2"]
[ECO "A40"]
[WhiteElo "2187"]
[BlackElo "2482"]
[Annotator "ChessBase"]
[PlyCount "108"]
[EventDate "2019.07.05"]
[EventType "swiss"]
[EventCountry "SRB"]
[SourceTitle "playchess.com"]
[Source "ChessBase"]
[SourceQuality "1"]
[TimeControl "5400+30"]

1. d4 {[%emt 0:00:00]} e6 {[%emt 0:00:00]} 2. Nf3 {[%emt 0:00:00]} c5 {[%emt 0:00:00]} 3. c3 {[%emt 0:00:04]} Nf6 {[%emt 0:00:00]} 4. Bf4 {[%emt 0:10:33]} Qb6 {[%emt 0:03:10]} 5. Qb3 {[%emt 0:03:57]} Nc6 {[%emt 0:04:18]} 6. e3 {[%emt 0:01:08]} Be7 {[%emt 0:00:59]} 7. h3 {[%emt 0:04:13]} O-O {[%emt 0:01:17]} 8. Nbd2 {[%emt 0:00:06]} d5 {[%emt 0:09:45]} 9. Be2 {[%emt 0:00:19]} Bd7 {[%emt 0:03:41]} 10. Ne5 {[%emt 0:02:22]} Nxe5 {[%emt 0:07:02]} 11. Bxe5 {[%emt 0:00:06]} Bc6 {[%emt 0:01:07]} 12. O-O {[%emt 0:00:59]} Rfc8 {[%emt 0:05:43]} 13. Rfe1 {[%emt 0:02:23]} Nd7 {[%emt 0:05:13]} 14. Bg3 {[%emt 0:00:26]} Qxb3 {[%emt 0:00:13]} 15. axb3 {[%emt 0:00:44]} a5 {[%emt 0:00:10]} 16. Nf3 {[%emt 0:20:50]} f6 {[%emt 0:02:56]} 17. Red1 {[%emt 0:06:10]} b6 {[%emt 0:03:34]} 18. Nd2 {[%emt 0:04:36]} Kf7 {[%emt 0:01:49]} 19. Bf3 {[%emt 0:03:51]} b5 {[%emt 0:02:26]} 20. Rac1 c4 {[%emt 0:01:11]} 21. bxc4 {[%emt 0:05:30]} bxc4 {[%emt 0:00:10]} 22. e4 {[%emt 0:00:31]} Ra7 23. exd5 exd5 {[%emt 0:05:29]} 24. Nf1 {[%emt 0:01:51]} Nb6 {[%emt 0:01:51]} 25. Ne3 {[%emt 0:04:03]} g6 {[%emt 0:00:51]} 26. Bf4 {[%emt 0:00:37]} Rd8 {[%emt 0:07:13]} 27. Ra1 {[%emt 0:01:28]} a4 {[%emt 0:01:21]} 28. Nc2 {[%emt 0:04:02]} Bd7 {[%emt 0:01:04]} 29. g4 {[%emt 0:00:28]} Rc8 {[%emt 0:05:09]} 30. h4 {[%emt 0:01:53]} Rc6 {[%emt 0:01:58]} 31. Kg2 {[%emt 0:00:31]} Ra5 {[%emt 0:00:49]} 32. Na3 {[%emt 0:02:26]} Nc8 {[%emt 0:02:17]} 33. Nc2 {[%emt 0:06:43]} Nb6 {[%emt 0:02:36]} 34. g5 {[%emt 0:02:02]} Rb5 {[%emt 0:03:20]} 35. Ra2 {[%emt 0:05:39]} Be6 {[%emt 0:02:31]} 36. gxf6 {[%emt 0:00:38]} Bxf6 {[%emt 0:00:16]} 37. Bg5 {[%emt 0:04:57]} Bg7 {[%emt 0:05:39]} 38. h5 {[%emt 0:00:23]} Rc8 {[%emt 0:04:36]} 39. Ne3 {[%emt 0:01:46]} Re8 {[%emt 0:03:20]} 40. hxg6+ {[%emt 0:00:09]} hxg6 {[%emt 0:00:31]} 41. Ng4 {[%emt 0:00:49]} Bf5 {[%emt 0:00:30]} 42. Nh6+ {[%emt 0:00:19]} Bxh6 {[%emt 0:00:52]} 43. Bxh6 {[%emt 0:00:02]} Be4 {[%emt 0:00:56]} 44. Bf4 {[%emt 0:00:08]} Re6 {[%emt 0:01:50]} 45. Be5 {[%emt 0:00:41]} Bxf3+ {[%emt 0:00:22]} 46. Kxf3 {[%emt 0:00:01]} Nd7 {[%emt 0:00:13]} 47. Bg3 {[%emt 0:01:08]} Ra6 {[%emt 0:00:40]} 48. Rh1 {[%emt 0:01:16]} Nf6 {[%emt 0:00:13]} 49. Be5 {[%emt 0:00:20]} Ne4 {[%emt 0:00:31]} 50. Rh7+ {[%emt 0:00:52]} Ke6 {[%emt 0:00:35]} 51. Rg7 {[%emt 0:00:26]} Kf5 {[%emt 0:00:42]} 52. Rf7+ {[%emt 0:00:16]} Ke6 {[%emt 0:00:34]} 53. Rg7 {[%emt 0:00:02]} Kf5 {[%emt 0:00:42]} 54. Rf7+ {[%emt 0:00:25]} Ke6 {[%emt 0:00:37] Kxe4 Kxe5+} 1/2-1/2

[Event "XII Paracin Festival 2019"]
[Site "Paracin"]
[Date "2019.07.05"]
[Round "1.14"]
[White "Petrov, Martin"]
[Black "Pantic, Ivica"]
[Result "1-0"]
[ECO "B27"]
[WhiteElo "2480"]
[BlackElo "2184"]
[Annotator "ChessBase"]
[PlyCount "55"]
[EventDate "2019.07.05"]
[EventType "swiss"]
[EventCountry "SRB"]
[SourceTitle "playchess.com"]
[Source "ChessBase"]
[SourceQuality "1"]
[TimeControl "5400+30"]

1. e4 {[%emt 0:00:00]} c5 {[%emt 0:00:00]} 2. Nf3 {[%emt 0:00:00]} Qc7 {[%emt 0:00:01]} 3. d4 {[%emt 0:00:56]} cxd4 {[%emt 0:00:30]} 4. Nxd4 {[%emt 0:00:04]} a6 {[%emt 0:01:37]} 5. Be2 {[%emt 0:00:57]} Nf6 {[%emt 0:05:29]} 6. Nc3 {[%emt 0:00:10]} e6 {[%emt 0:00:17]} 7. O-O {[%emt 0:00:09]} Be7 {[%emt 0:02:36]} 8. f4 {[%emt 0:00:33]} d6 {[%emt 0:00:35]} 9. Kh1 {[%emt 0:01:12]} O-O {[%emt 0:03:17]} 10. Be3 {[%emt 0:01:23]} Rd8 {[%emt 0:14:38]} 11. Qe1 {[%emt 0:07:25]} d5 {[%emt 0:08:05]} 12. e5 {[%emt 0:01:50]} Ne4 {[%emt 0:00:07]} 13. Nxe4 {[%emt 0:00:56]} dxe4 {[%emt 0:00:05]} 14. c3 {[%emt 0:04:09]} Nd7 {[%emt 0:00:35]} 15. Qg3 {[%emt 0:06:18]} g6 {[%emt 0:04:26]} 16. f5 {[%emt 0:05:50]} Nxe5 {[%emt 0:02:04]} 17. fxe6 {[%emt 0:01:53]} Bd6 {[%emt 0:11:40]} 18. exf7+ {[%emt 0:11:35]} Nxf7 {[%emt 0:00:09]} 19. Qh4 {[%emt 0:00:15]} Re8 {[%emt 0:03:30]} 20. Rxf7 {[%emt 0:13:21]} Qxf7 {[%emt 0:00:45]} 21. Rf1 {[%emt 0:00:12]} Qc7 {[%emt 0:06:07]} 22. Bd1 {[%emt 0:00:08]} Rf8 {[%emt 0:02:06]} 23. Bb3+ {[%emt 0:00:04]} Kh8 {[%emt 0:00:29]} 24. Rxf8+ {[%emt 0:00:08]} Bxf8 {[%emt 0:00:10]} 25. Bf4 {[%emt 0:00:05]} Qa5 {[%emt 0:09:16]} 26. Qf6+ {[%emt 0:00:17]} Bg7 {[%emt 0:00:11]} 27. Be5 {[%emt 0:00:03]} Qc7 {[%emt 0:05:28]} 28. Qf8# {[%emt 0:00:06]} 1-0

[Event "XII Paracin Festival 2019"]
[Site "Paracin"]
[Date "2019.07.05"]
[Round "1.15"]
[White "Nestorovic, Katarina"]
[Black "Peng, Xiongjian"]
[Result "0-1"]
[ECO "C47"]
[WhiteElo "2179"]
[BlackElo "2467"]
[Annotator "ChessBase"]
[PlyCount "94"]
[EventDate "2019.07.05"]
[EventType "swiss"]
[EventCountry "SRB"]
[SourceTitle "playchess.com"]
[Source "ChessBase"]
[SourceQuality "1"]
[TimeControl "5400+30"]

1. e4 {[%emt 0:00:00]} e5 {[%emt 0:00:14]} 2. Nf3 {[%emt 0:00:14]} Nc6 {[%emt 0:00:07]} 3. Nc3 {[%emt 0:00:11]} Nf6 {[%emt 0:00:09]} 4. d4 {[%emt 0:00:15]} exd4 {[%emt 0:00:19]} 5. Nxd4 {[%emt 0:00:07]} Bb4 {[%emt 0:00:08]} 6. Nxc6 {[%emt 0:00:13]} bxc6 {[%emt 0:00:05]} 7. Bd3 {[%emt 0:00:11]} O-O {[%emt 0:00:18]} 8. O-O {[%emt 0:00:24]} Re8 {[%emt 0:00:54]} 9. Re1 {[%emt 0:05:36]} d6 {[%emt 0:02:10]} 10. h3 {[%emt 0:00:44]} h6 {[%emt 0:02:02]} 11. Bf4 {[%emt 0:02:40]} Nd7 {[%emt 0:01:13]} 12. e5 {[%emt 0:15:29]} dxe5 {[%emt 0:03:03]} 13. Bxe5 {[%emt 0:02:26]} Nxe5 {[%emt 0:00:06]} 14. Rxe5 {[%emt 0:01:03]} Be6 {[%emt 0:00:03]} 15. Qf3 {[%emt 0:02:45]} Bd6 {[%emt 0:04:05]} 16. Re2 {[%emt 0:08:08]} Rb8 {[%emt 0:00:53]} 17. Rae1 {[%emt 0:06:31]} Rxb2 {[%emt 0:03:36]} 18. Qe4 {[%emt 0:02:55]} g6 {[%emt 0:01:13]} 19. Qxc6 {[%emt 0:01:18]} Qa8 {[%emt 0:00:27]} 20. Qa4 {[%emt 0:08:27]} Bb4 {[%emt 0:04:50]} 21. Ne4 {[%emt 0:04:11]} Rd8 {[%emt 0:07:54]} 22. Rf1 {[%emt 0:10:04]} c5 {[%emt 0:09:15]} 23. a3 {[%emt 0:10:06]} Ra2 {[%emt 0:00:51]} 24. Nf6+ {[%emt 0:00:45]} Kg7 {[%emt 0:02:17]} 25. Rxe6 {[%emt 0:00:55]} fxe6 {[%emt 0:29:55]} 26. Qb3 {[%emt 0:00:10]} Kxf6 {[%emt 0:00:05]} 27. Qxa2 {[%emt 0:00:15]} Bc3 {[%emt 0:00:05]} 28. Qc4 {[%emt 0:00:35]} Bd4 {[%emt 0:00:47]} 29. c3 {[%emt 0:01:19]} Be5 {[%emt 0:00:07]} 30. Qh4+ {[%emt 0:00:34]} Kf7 {[%emt 0:00:16]} 31. Be4 {[%emt 0:00:21]} Bf6 {[%emt 0:02:18]} 32. Qg4 {[%emt 0:01:33]} Qb8 {[%emt 0:00:38]} 33. Rb1 {[%emt 0:01:59]} Qe5 {[%emt 0:00:22]} 34. Qxg6+ {[%emt 0:00:41]} Kf8 {[%emt 0:00:22]} 35. Bf3 {[%emt 0:01:27]} Bg7 {[%emt 0:01:55]} 36. Bg4 {[%emt 0:05:20]} Qf6 {[%emt 0:00:07]} 37. Qe4 {[%emt 0:00:59]} Qe5 {[%emt 0:00:09]} 38. Qc4 {[%emt 0:01:07]} Re8 {[%emt 0:00:52]} 39. g3 {[%emt 0:01:11]} Kg8 40. Rb2 {[%emt 0:02:12]} Qd5 {[%emt 0:02:45]} 41. Qe2 {[%emt 0:02:14]} Kh8 {[%emt 0:01:09]} 42. Bf3 {[%emt 0:00:10]} Qg5 {[%emt 0:00:40]} 43. Rc2 {[%emt 0:01:24]} Rf8 {[%emt 0:00:38]} 44. Kg2 {[%emt 0:00:10]} c4 {[%emt 0:01:42]} 45. Qxe6 {[%emt 0:01:06]} Qc5 {[%emt 0:00:33]} 46. Be4 {[%emt 0:00:25]} Rf6 {[%emt 0:01:03]} 47. Qe8+ {[%emt 0:00:26]} Rf8 {[%emt 0:00:01]} 0-1

[Event "XII Paracin Festival 2019"]
[Site "Paracin"]
[Date "2019.07.05"]
[Round "1.16"]
[White "Stankovic, Milos"]
[Black "Gandhi, Anish"]
[Result "1-0"]
[ECO "B53"]
[WhiteElo "2462"]
[BlackElo "2167"]
[Annotator "ChessBase"]
[PlyCount "49"]
[EventDate "2019.07.05"]
[EventType "swiss"]
[EventCountry "SRB"]
[SourceTitle "playchess.com"]
[Source "ChessBase"]
[SourceQuality "1"]
[TimeControl "5400+30"]

1. e4 {[%emt 0:00:00]} c5 {[%emt 0:00:00]} 2. Nf3 {[%emt 0:00:33]} d6 {[%emt 0:00:00]} 3. d4 {[%emt 0:01:07]} cxd4 {[%emt 0:00:00]} 4. Qxd4 {[%emt 0:00:27]} Nf6 {[%emt 0:01:02]} 5. Nc3 {[%emt 0:00:35]} Nc6 {[%emt 0:00:53]} 6. Bb5 {[%emt 0:00:31]} Bd7 {[%emt 0:01:12]} 7. Bxc6 {[%emt 0:00:41]} Bxc6 {[%emt 0:00:10]} 8. Bg5 {[%emt 0:00:24]} e6 {[%emt 0:01:02]} 9. Qd3 {[%emt 0:00:45]} h6 {[%emt 0:05:05]} 10. Bh4 {[%emt 0:01:46]} g5 {[%emt 0:05:02]} 11. Bg3 {[%emt 0:01:31]} e5 {[%emt 0:00:14]} 12. O-O-O {[%emt 0:01:30]} Be7 {[%emt 0:18:40]} 13. Nd2 {[%emt 0:02:37]} Qc7 {[%emt 0:06:45]} 14. Nc4 {[%emt 0:03:37]} O-O-O {[%emt 0:02:57]} 15. Ne3 {[%emt 0:02:45]} Kb8 {[%emt 0:00:36]} 16. f3 {[%emt 0:00:53]} Ka8 {[%emt 0:03:36]} 17. Kb1 {[%emt 0:01:24]} Rd7 {[%emt 0:08:51]} 18. Qc4 {[%emt 0:04:53]} Bd8 {[%emt 0:04:56]} 19. Rd2 {[%emt 0:01:59]} Qa5 {[%emt 0:02:07]} 20. b4 {[%emt 0:07:02]} Qa3 {[%emt 0:11:52]} 21. Rd3 {[%emt 0:01:22]} Rc7 {[%emt 0:01:58]} 22. Nb5 {[%emt 0:02:10]} Qa4 {[%emt 0:04:33]} 23. Nxc7+ {[%emt 0:01:29]} Bxc7 {[%emt 0:00:02]} 24. Qxf7 {[%emt 0:02:25]} Nd7 {[%emt 0:00:33]} 25. Qb3 {[%emt 0:00:50]} 1-0